{"text_format":"1","workbook":"xlsx","n_sheets":2,"sheets":["Pasiūlymas","Subtiekėjai"],"not_rendered":{"charts":0,"images":0,"macros":1,"external_links":0,"defined_names":0,"comments":0,"pivot_tables":0},"unopened":[],"bounds":{"document_bytes":16777216,"sheet_cells":100000,"rows_first":2000,"rows_last":500,"rows_between":2000,"halvings":0,"cell_chars":16384,"cell_head_chars":4096},"cells_cut":0,"cells_raw":0,"read":"whole","date_system":"1900"}

{"sheet":"Pasiūlymas","index":0,"n_rows":515,"n_cols":13,"rows_kept":515,"cut":false,"hidden":false,"merged":[[18,0,18,1],[18,2,18,4],[19,0,19,1],[19,2,19,4],[15,0,15,1],[15,2,15,4],[16,0,16,1],[16,2,16,4],[17,0,17,1],[17,2,17,4],[12,0,12,1],[12,2,12,4],[13,0,13,1],[13,2,13,4],[14,0,14,1],[14,2,14,4],[9,0,9,1],[9,2,9,4],[10,0,10,1],[10,2,10,4],[11,0,11,1],[11,2,11,4],[28,1,28,7],[331,1,331,7],[362,1,362,7],[497,1,497,7],[505,1,505,7]]}
["Perkantysis subjektas, kuriam teikiamas pasiūlymas:",null,"VŠĮ Kauno klinikinė ligoninė"]
[]
[null,"PASIŪLYMAS"]
[null,"Transportavimo priemonių ratukų, dujinių  amortizatorių ir hidraulinių pakelimo cilindrų  pirkimas"]
[]
["Data:","2019-06-14"]
["Nr.:"]
["Vieta:","Klaipėda"]
[]
["Tiekėjo arba tiekėjų grupės narių pavadinimas (-ai)",null,"UAB \"2Nojus\""]
["Tiekėjo arba tiekėjo grupės narių juridinio asmens kodas (-ai) (tuo atveju, jei pasiūlymą teikia fizinis asmuo - verslo pažymėjimo Nr. ar pan.)",null,"Į.k. 302705542"]
["Tiekėjo arba tiekėjo grupės narių PVM mokėtojo kodas (-ai)",null,"LT100006685518"]
["Tiekėjų grupės narys, atstovaujantis arba vadovaujantis  tiekėjų grupei (pildoma, jei pasiūlymą teikia tiekėjų grupė)",null,"Direktorius Vytautas Šaduikis"]
["Tiekėjo valdymo ar priežiūros organo narys (-iai) ar kitas asmuo (-ys), turintis (-ys) teisę atstovauti tiekėjui ar jį kontroliuoti, jo vardu priimti sprendimą, sudaryti sandorį",null,"Direktorius Vytautas Šaduikis"]
["Tiekėjo arba atstovaujančio tiekėjų grupės nario adresas, telefono numeris, fakso numeris, el. paštas",null,"H. Manto g. 36-17, Klaipda, mob. 869845868, el.p. 2nojus59@gmail.com"]
["Tiekėjo arba atstovaujančio tiekėjų grupės nario banko pavadinimas, banko kodas, sąskaitos Nr.",null,"AB :Swedbank“ b.k. 73000 \nA.s. LT937300010129879054\n"]
["Asmens, įgalioto pasirašyti sutartį, vardas, pavardė, pareigos",null,"Direktorius Vytautas Šaduikis"]
["Asmens, atsakingo už pirkimą, vardas, pavardė,  telefono numeris, el. paštas",null,"869845868 2nojus59@gmail.com"]
[]
[]
[]
[]
[]
["Siūlomas pirkimo objektas visiškai atitinka pirkimo sąlygose nustatytus reikalavimus ir jo kaina yra:"]
[]
[]
[null,null,null,null,null,null,null,null,null,null,"","",""]
["Nr.","Pavadinimas","Maksimalus kiekis","Mato vienetas","Vieneto kaina be PVM, Eur","Suma be PVM, Eur","Siūlomos prekės pavadinimas, gamintojas, prekės kodas, katalogo psl.","Siūlomo produkto parametrai"]
["1.","Lovų, vežimėlių ratukai",null,null,null,null,null,null,null,""]
["1.1.","Guminis ratukas su fiksuotu kronšteinu d50[+-10]mm\n",10,"vnt.",null,{"$f":"IF(ISBLANK(E30),\"\", PRODUCT(C30,E30))","v":""}]
["1.1.1.","Metalinis ratlankis\n"]
["1.1.2.","Lietos elastingos gumos padangos\n",null,null,null,null,null,null,null,""]
["1.1.3.","Presuotas cinkuoto plieno kronšteinas\n",null,null,null,null,null,null,null,null,null,""]
["1.1.4.","Dvigubas rutulinis ratuko guolis su apsauga nuo dulkių ir purvo\n",null,null,null,null,null,null,null,null,null,""]
["1.1.5.","Viršutinė tvirtinimo plokštelė su 4 tvirtinimo kiaurymėmis\n",null,null,null,null,null,null,null,"","",""]
["1.2.","Guminis ratukas su fiksuotu kronšteinu d80[+-10]mm",10,"vnt.",null,{"$f":"IF(ISBLANK(E36),\"\", PRODUCT(C36,E36))","v":""},null,null,null,"","",""]
["1.2.1.","Metalinis ratlankis",null,null,null,null,null,null,null,"","",""]
["1.2.2.","Lietos elastingos gumos padangos"]
["1.2.3.","Presuotas cinkuoto plieno kronšteinas"]
["1.2.4.","Dvigubas rutulinis ratuko guolis su apsauga nuo dulkių ir purvo",null,null,null,null,null,null,null,""]
["1.2.5.","Viršutinė tvirtinimo plokštelė su 4 tvirtinimo kiaurymėmis"]
["1.3.","Guminis ratukas su fiksuotu kronšteinu d100[+-10]mm",10,"vnt.",null,{"$f":"IF(ISBLANK(E42),\"\", PRODUCT(C42,E42))","v":""},null,null,null,null,null,""]
["1.3.1.","Metalinis ratlankis",null,null,null,null,null,null,null,"",null,""]
["1.3.2.","Lietos elastingos gumos padangos",null,null,null,null,null,null,null,null,null,""]
["1.3.3.","Presuotas cinkuoto plieno kronšteinas"]
["1.3.4.","Dvigubas rutulinis ratuko guolis su apsauga nuo dulkių ir purvo",null,null,null,null,null,null,null,"","",""]
["1.3.5.","Viršutinė tvirtinimo plokštelė su 4 tvirtinimo kiaurymėmis",null,null,null,null,null,null,null,"","",""]
["1.4.","Guminis ratukas su fiksuotu kronšteinu d125[+-10]mm",10,"vnt.",null,{"$f":"IF(ISBLANK(E48),\"\", PRODUCT(C48,E48))","v":""},null,null,null,"","",""]
["1.4.1.","Metalinis ratlankis"]
["1.4.2.","Lietos elastingos gumos padangos"]
["1.4.3.","Presuotas cinkuoto plieno kronšteinas"]
["1.4.4.","Dvigubas rutulinis ratuko guolis su apsauga nuo dulkių ir purvo"]
["1.4.5.","Viršutinė tvirtinimo plokštelė su 4 tvirtinimo kiaurymėmis"]
["1.5.","Guminis ratukas su fiksuotu kronšteinu d160[+-10]mm",10,"vnt.",null,{"$f":"IF(ISBLANK(E54),\"\", PRODUCT(C54,E54))","v":""}]
["1.5.1.","Metalinis ratlankis"]
["1.5.2.","Lietos elastingos gumos padangos"]
["1.5.3.","Presuotas cinkuoto plieno kronšteinas"]
["1.5.4.","Dvigubas rutulinis ratuko guolis su apsauga nuo dulkių ir purvo"]
["1.5.5.","Viršutinė tvirtinimo plokštelė su 4 tvirtinimo kiaurymėmis"]
["1.6.","Guminis ratukas d50 [+-10]mm pasukamas su tvirtinimo plokštele\n",10,"vnt.",null,{"$f":"IF(ISBLANK(E60),\"\", PRODUCT(C60,E60))","v":""}]
["1.6.1.","Metalinis ratlankis"]
["1.6.2.","Lietos elastingos gumos padangos"]
["1.6.3.","Presuotas cinkuoto plieno kronšteinas"]
["1.6.4.","Dvigubas rutulinis ratuko guolis su apsauga nuo dulkių ir purvo"]
["1.6.5.","Viršutinė tvirtinimo plokštelė su 4 tvirtinimo kiaurymėmis"]
["1.6.6.","Dvigubi atraminiai guoliai\n"]
["1.7.","Guminis ratukas d80 [+-10]mm pasukamas su tvirtinimo plokštele",10,"vnt.",null,{"$f":"IF(ISBLANK(E67),\"\", PRODUCT(C67,E67))","v":""}]
["1.7.1.","Metalinis ratlankis"]
["1.7.2.","Lietos elastingos gumos padangos"]
["1.7.3.","Presuotas cinkuoto plieno kronšteinas"]
["1.7.4.","Dvigubas rutulinis ratuko guolis su apsauga nuo dulkių ir purvo"]
["1.7.5.","Viršutinė tvirtinimo plokštelė su 4 tvirtinimo kiaurymėmis"]
["1.7.6.","Dvigubi atraminiai guoliai"]
["1.8.","Guminis ratukas d100 [+-10]mm pasukamas su tvirtinimo plokštele",10,"vnt.",null,{"$f":"IF(ISBLANK(E74),\"\", PRODUCT(C74,E74))","v":""}]
["1.8.1.","Metalinis ratlankis"]
["1.8.2.","Lietos elastingos gumos padangos"]
["1.8.3.","Presuotas cinkuoto plieno kronšteinas"]
["1.8.4.","Dvigubas rutulinis ratuko guolis su apsauga nuo dulkių ir purvo"]
["1.8.5.","Viršutinė tvirtinimo plokštelė su 4 tvirtinimo kiaurymėmis"]
["1.8.6.","Dvigubi atraminiai guoliai"]
["1.9.","Guminis ratukas d125 [+-10]mm pasukamas su tvirtinimo plokštele",10,"vnt.",null,{"$f":"IF(ISBLANK(E81),\"\", PRODUCT(C81,E81))","v":""}]
["1.9.1.","Metalinis ratlankis"]
["1.9.2.","Lietos elastingos gumos padangos"]
["1.9.3.","Presuotas cinkuoto plieno kronšteinas"]
["1.9.4.","Dvigubas rutulinis ratuko guolis su apsauga nuo dulkių ir purvo"]
["1.9.5.","Viršutinė tvirtinimo plokštelė su 4 tvirtinimo kiaurymėmis"]
["1.9.6.","Dvigubi atraminiai guoliai"]
["1.10.","Guminis ratukas d160 [+-10]mm pasukamas su tvirtinimo plokštele",10,"vnt.",null,{"$f":"IF(ISBLANK(E88),\"\", PRODUCT(C88,E88))","v":""}]
["1.10.1.","Metalinis ratlankis"]
["1.10.2.","Lietos elastingos gumos padangos"]
["1.10.3.","Presuotas cinkuoto plieno kronšteinas"]
["1.10.4.","Dvigubas rutulinis ratuko guolis su apsauga nuo dulkių ir purvo"]
["1.10.5.","Viršutinė tvirtinimo plokštelė su 4 tvirtinimo kiaurymėmis"]
["1.10.6.","Dvigubi atraminiai guoliai"]
["1.11.","Guminis ratukas d50 [+-10]mm pasukamas su tvirtinimo plokštele, su stabdžiu",5,"vnt.",null,{"$f":"IF(ISBLANK(E95),\"\", PRODUCT(C95,E95))","v":""}]
["1.11.1.","Metalinis ratlankis"]
["1.11.2.","Lietos elastingos gumos padangos"]
["1.11.3.","Presuotas cinkuoto plieno kronšteinas"]
["1.11.4.","Dvigubas rutulinis ratuko guolis su apsauga nuo dulkių ir purvo"]
["1.11.5.","Viršutinė tvirtinimo plokštelė su 4 tvirtinimo kiaurymėmis"]
["1.11.6.","Dvigubi atraminiai guoliai"]
["1.11.7.","Pilnas stabdis - stabdo kronšteino pasukimą ir ratuką"]
["1.12.","Guminis ratukas d80 [+-10]mm pasukamas su tvirtinimo plokštele, su stabdžiu",5,"vnt.",null,{"$f":"IF(ISBLANK(E103),\"\", PRODUCT(C103,E103))","v":""}]
["1.12.1.","Metalinis ratlankis"]
["1.12.2.","Lietos elastingos gumos padangos"]
["1.12.3.","Presuotas cinkuoto plieno kronšteinas"]
["1.12.4.","Dvigubas rutulinis ratuko guolis su apsauga nuo dulkių ir purvo"]
["1.12.5.","Viršutinė tvirtinimo plokštelė su 4 tvirtinimo kiaurymėmis"]
["1.12.6.","Dvigubi atraminiai guoliai"]
["1.12.7.","Pilnas stabdis - stabdo kronšteino pasukimą ir ratuką"]
["1.13.","Guminis ratukas d100 [+-10]mm pasukamas su tvirtinimo plokštele, su stabdžiu",5,"vnt.",null,{"$f":"IF(ISBLANK(E111),\"\", PRODUCT(C111,E111))","v":""}]
["1.13.1.","Metalinis ratlankis"]
["1.13.2.","Lietos elastingos gumos padangos"]
["1.13.3.","Presuotas cinkuoto plieno kronšteinas"]
["1.13.4.","Dvigubas rutulinis ratuko guolis su apsauga nuo dulkių ir purvo"]
["1.13.5.","Viršutinė tvirtinimo plokštelė su 4 tvirtinimo kiaurymėmis"]
["1.13.6.","Dvigubi atraminiai guoliai"]
["1.13.7.","Pilnas stabdis - stabdo kronšteino pasukimą ir ratuką"]
["1.14.","Guminis ratukas d125 [+-10]mm pasukamas su tvirtinimo plokštele, su stabdžiu",5,"vnt.",null,{"$f":"IF(ISBLANK(E119),\"\", PRODUCT(C119,E119))","v":""}]
["1.14.1.","Metalinis ratlankis"]
["1.14.2.","Lietos elastingos gumos padangos"]
["1.14.3.","Presuotas cinkuoto plieno kronšteinas"]
["1.14.4.","Dvigubas rutulinis ratuko guolis su apsauga nuo dulkių ir purvo"]
["1.14.5.","Viršutinė tvirtinimo plokštelė su 4 tvirtinimo kiaurymėmis"]
["1.14.6.","Dvigubi atraminiai guoliai"]
["1.14.7.","Pilnas stabdis - stabdo kronšteino pasukimą ir ratuką"]
["1.15.","Guminis ratukas d160 [+-10]mm pasukamas su tvirtinimo plokštele, su stabdžiu",5,"vnt.",null,{"$f":"IF(ISBLANK(E127),\"\", PRODUCT(C127,E127))","v":""}]
["1.15.1.","Metalinis ratlankis"]
["1.15.2.","Lietos elastingos gumos padangos"]
["1.15.3.","Presuotas cinkuoto plieno kronšteinas"]
["1.15.4.","Dvigubas rutulinis ratuko guolis su apsauga nuo dulkių ir purvo"]
["1.15.5.","Viršutinė tvirtinimo plokštelė su 4 tvirtinimo kiaurymėmis"]
["1.15.6.","Dvigubi atraminiai guoliai"]
["1.15.7.","Pilnas stabdis - stabdo kronšteino pasukimą ir ratuką"]
["1.16.","Guminis ratukas pasukamas d50[+-10]mm",10,"vnt.",null,{"$f":"IF(ISBLANK(E135),\"\", PRODUCT(C135,E135))","v":""}]
["1.16.1.","Metalinis ratlankis"]
["1.16.2.","Lietos elastingos gumos padangos"]
["1.16.3.","Presuotas cinkuoto plieno kronšteinas"]
["1.16.4.","Dvigubas rutulinis ratuko guolis su apsauga nuo dulkių ir purvo"]
["1.16.5.","Dvigubi atraminiai guoliai"]
["1.16.6.","Kiaurymė kronšteino viršuje varžto tvirtinimui  12[+-2]mm"]
["1.17.","Guminis ratukas pasukamas d80[+-10]mm",10,"vnt.",null,{"$f":"IF(ISBLANK(E142),\"\", PRODUCT(C142,E142))","v":""}]
["1.17.1.","Metalinis ratlankis"]
["1.17.2.","Lietos elastingos gumos padangos"]
["1.17.3.","Presuotas cinkuoto plieno kronšteinas"]
["1.17.4.","Dvigubas rutulinis ratuko guolis su apsauga nuo dulkių ir purvo"]
["1.17.5.","Dvigubi atraminiai guoliai"]
["1.17.6.","Kiaurymė kronšteino viršuje varžto tvirtinimui  12[+-2]mm"]
["1.18.","Guminis ratukas pasukamas d100[+-10]mm",10,"vnt.",null,{"$f":"IF(ISBLANK(E149),\"\", PRODUCT(C149,E149))","v":""}]
["1.18.1.","Metalinis ratlankis"]
["1.18.2.","Lietos elastingos gumos padangos"]
["1.18.3.","Presuotas cinkuoto plieno kronšteinas"]
["1.18.4.","Dvigubas rutulinis ratuko guolis su apsauga nuo dulkių ir purvo"]
["1.18.5.","Dvigubi atraminiai guoliai"]
["1.18.6.","Kiaurymė kronšteino viršuje varžto tvirtinimui  12[+-2]mm"]
["1.19.","Guminis ratukas pasukamas d125[+-10]mm",10,"vnt.",null,{"$f":"IF(ISBLANK(E156),\"\", PRODUCT(C156,E156))","v":""}]
["1.19.1.","Metalinis ratlankis"]
["1.19.2.","Lietos elastingos gumos padangos"]
["1.19.3.","Presuotas cinkuoto plieno kronšteinas"]
["1.19.4.","Dvigubas rutulinis ratuko guolis su apsauga nuo dulkių ir purvo"]
["1.19.5.","Dvigubi atraminiai guoliai"]
["1.19.6.","Kiaurymė kronšteino viršuje varžto tvirtinimui  12[+-2]mm"]
["1.20.","Guminis ratukas pasukamas d160[+-10]mm",10,"vnt.",null,{"$f":"IF(ISBLANK(E163),\"\", PRODUCT(C163,E163))","v":""}]
["1.20.1.","Metalinis ratlankis"]
["1.20.2.","Lietos elastingos gumos padangos"]
["1.20.3.","Presuotas cinkuoto plieno kronšteinas"]
["1.20.4.","Dvigubas rutulinis ratuko guolis su apsauga nuo dulkių ir purvo"]
["1.20.5.","Dvigubi atraminiai guoliai"]
["1.20.6.","Kiaurymė kronšteino viršuje varžto tvirtinimui  12[+-2]mm"]
["1.21.","Guminis ratukas pasukamas d50[+-10]mm, su stabdžiu",5,"vnt.",null,{"$f":"IF(ISBLANK(E170),\"\", PRODUCT(C170,E170))","v":""}]
["1.21.1.","Metalinis ratlankis"]
["1.21.2.","Lietos elastingos gumos padangos"]
["1.21.3.","Presuotas cinkuoto plieno kronšteinas"]
["1.21.4.","Dvigubas rutulinis ratuko guolis su apsauga nuo dulkių ir purvo"]
["1.21.5.","Dvigubi atraminiai guoliai"]
["1.21.6.","Kiaurymė kronšteino viršuje varžto tvirtinimui  12[+-2]mm"]
["1.21.7.","Pilnas stabdis - stabdo kronšteino pasukimą ir ratuką"]
["1.22.","Guminis ratukas pasukamas d80[+-10]mm, su stabdžiu",5,"vnt.",null,{"$f":"IF(ISBLANK(E178),\"\", PRODUCT(C178,E178))","v":""}]
["1.22.1.","Metalinis ratlankis"]
["1.22.2.","Lietos elastingos gumos padangos"]
["1.22.3.","Presuotas cinkuoto plieno kronšteinas"]
["1.22.4.","Dvigubas rutulinis ratuko guolis su apsauga nuo dulkių ir purvo"]
["1.22.5.","Dvigubi atraminiai guoliai"]
["1.22.6.","Kiaurymė kronšteino viršuje varžto tvirtinimui  12[+-2]mm"]
["1.22.7.","Pilnas stabdis - stabdo kronšteino pasukimą ir ratuką"]
["1.23.","Guminis ratukas pasukamas d100[+-10]mm, su stabdžiu",5,"vnt.",null,{"$f":"IF(ISBLANK(E186),\"\", PRODUCT(C186,E186))","v":""}]
["1.23.1.","Metalinis ratlankis"]
["1.23.2.","Lietos elastingos gumos padangos"]
["1.23.3.","Presuotas cinkuoto plieno kronšteinas"]
["1.23.4.","Dvigubas rutulinis ratuko guolis su apsauga nuo dulkių ir purvo"]
["1.23.5.","Dvigubi atraminiai guoliai"]
["1.23.6.","Kiaurymė kronšteino viršuje varžto tvirtinimui  12[+-2]mm"]
["1.23.7.","Pilnas stabdis - stabdo kronšteino pasukimą ir ratuką"]
["1.24.","Guminis ratukas pasukamas d125[+-10]mm, su stabdžiu",5,"vnt.",null,{"$f":"IF(ISBLANK(E194),\"\", PRODUCT(C194,E194))","v":""}]
["1.24.1.","Metalinis ratlankis"]
["1.24.2.","Lietos elastingos gumos padangos"]
["1.24.3.","Presuotas cinkuoto plieno kronšteinas"]
["1.24.4.","Dvigubas rutulinis ratuko guolis su apsauga nuo dulkių ir purvo"]
["1.24.5.","Dvigubi atraminiai guoliai"]
["1.24.6.","Kiaurymė kronšteino viršuje varžto tvirtinimui  12[+-2]mm"]
["1.24.7.","Pilnas stabdis - stabdo kronšteino pasukimą ir ratuką"]
["1.25.","Guminis ratukas pasukamas d160[+-10]mm, su stabdžiu",5,"vnt.",null,{"$f":"IF(ISBLANK(E202),\"\", PRODUCT(C202,E202))","v":""}]
["1.25.1.","Metalinis ratlankis"]
["1.25.2.","Lietos elastingos gumos padangos"]
["1.25.3.","Presuotas cinkuoto plieno kronšteinas"]
["1.25.4.","Dvigubas rutulinis ratuko guolis su apsauga nuo dulkių ir purvo"]
["1.25.5.","Dvigubi atraminiai guoliai"]
["1.25.6.","Kiaurymė kronšteino viršuje varžto tvirtinimui  12[+-2]mm"]
["1.25.7.","Pilnas stabdis - stabdo kronšteino pasukimą ir ratuką"]
["1.26.","Guminis ratukas pakaitinis d50[+-10]mm",10,"vnt.",null,{"$f":"IF(ISBLANK(E210),\"\", PRODUCT(C210,E210))","v":""}]
["1.26.1.","Metalinis ratlankis"]
["1.26.2.","Lietos elastingos gumos padangos"]
["1.26.3.","Dvigubas rutulinis ratuko guolis su apsauga nuo dulkių ir purvo"]
["1.26.4.","tinka objektams  1.1 ; 1.6 ; 1.11 ; 1.16 ; 1,21"]
["1.27.","Guminis ratukas pakaitinis d80[+-10]mm",10,"vnt.",null,{"$f":"IF(ISBLANK(E215),\"\", PRODUCT(C215,E215))","v":""}]
["1.27.1.","Metalinis ratlankis"]
["1.27.2.","Lietos elastingos gumos padangos"]
["1.27.3.","Dvigubas rutulinis ratuko guolis su apsauga nuo dulkių ir purvo"]
["1.27.4.","tinka objektams  1.2 ; 1.7 ; 1.12 ; 1.17 ; 1.22"]
["1.28.","Guminis ratukas pakaitinis d100[+-10]mm",10,"vnt.",null,{"$f":"IF(ISBLANK(E220),\"\", PRODUCT(C220,E220))","v":""}]
["1.28.1.","Metalinis ratlankis"]
["1.28.2.","Lietos elastingos gumos padangos"]
["1.28.3.","Dvigubas rutulinis ratuko guolis su apsauga nuo dulkių ir purvo"]
["1.28.4.","tinka objektams  1.3 ; 1.8 ; 1.13 ; 1.18 ; 1.23"]
["1.29.","Guminis ratukas pakaitinis d125[+-10]mm",10,"vnt.",null,{"$f":"IF(ISBLANK(E225),\"\", PRODUCT(C225,E225))","v":""}]
["1.29.1.","Metalinis ratlankis"]
["1.29.2.","Lietos elastingos gumos padangos"]
["1.29.3.","Dvigubas rutulinis ratuko guolis su apsauga nuo dulkių ir purvo"]
["1.29.4.","tinka objektams  1.4 ; 1.9 ; 1.14 ; 1.19 ; 1.24"]
["1.30.","Guminis ratukas pakaitinis d160[+-10]mm",10,"vnt.",null,{"$f":"IF(ISBLANK(E230),\"\", PRODUCT(C230,E230))","v":""}]
["1.30.1.","Metalinis ratlankis"]
["1.30.2.","Lietos elastingos gumos padangos"]
["1.30.3.","Dvigubas rutulinis ratuko guolis su apsauga nuo dulkių ir purvo"]
["1.30.4.","tinka objektams  1.5 ; 1.10 ; 1.15 ; 1.20 ; 1.25"]
["1.31.","Guminis ratukas pripučiamas, su fiksuotu kronšteinu d175[+-10]mm",10,"vnt.",null,{"$f":"IF(ISBLANK(E235),\"\", PRODUCT(C235,E235))","v":""}]
["1.31.1.","Metalinis ratlankis"]
["1.31.2.","Pneumatinės 2 sluoksnių padangos su kamera"]
["1.31.3.","Presuotas cinkuoto plieno kronšteinas"]
["1.31.4.","Dvigubas rutulinis ratuko guolis su apsauga nuo dulkių ir purvo"]
["1.31.5.","Viršutinė tvirtinimo plokštelė su 4 tvirtinimo kiaurymėmis"]
["1.31.6.","Atlaiko apkrovą iki 100kg"]
["1.32.","Guminis ratukas pripučiamas, su fiksuotu kronšteinu d200[+-10]mm",10,"vnt.",null,{"$f":"IF(ISBLANK(E242),\"\", PRODUCT(C242,E242))","v":""}]
["1.32.1.","Metalinis ratlankis"]
["1.32.2.","Pneumatinės 2 sluoksnių padangos su kamera"]
["1.32.3.","Presuotas cinkuoto plieno kronšteinas"]
["1.32.4.","Dvigubas rutulinis ratuko guolis su apsauga nuo dulkių ir purvo"]
["1.32.5.","Viršutinė tvirtinimo plokštelė su 4 tvirtinimo kiaurymėmis"]
["1.32.6.","Atlaiko apkrovą iki 100kg"]
["1.33.","Guminis ratukas pripučiamas, su fiksuotu kronšteinu d250[+-20]mm",10,"vnt.",null,{"$f":"IF(ISBLANK(E249),\"\", PRODUCT(C249,E249))","v":""}]
["1.33.1.","Metalinis ratlankis"]
["1.33.2.","Pneumatinės 2 sluoksnių padangos su kamera"]
["1.33.3.","Presuotas cinkuoto plieno kronšteinas"]
["1.33.4.","Dvigubas rutulinis ratuko guolis su apsauga nuo dulkių ir purvo"]
["1.33.5.","Viršutinė tvirtinimo plokštelė su 4 tvirtinimo kiaurymėmis"]
["1.33.6.","Atlaiko apkrovą iki 100kg"]
["1.34.","Guminis ratukas pripučiamas, pasukamas d175[+-10]mm",10,"vnt.",null,{"$f":"IF(ISBLANK(E256),\"\", PRODUCT(C256,E256))","v":""}]
["1.34.1.","Metalinis ratlankis"]
["1.34.2.","Pneumatinės 2 sluoksnių padangos su kamera"]
["1.34.3.","Presuotas cinkuoto plieno kronšteinas"]
["1.34.4.","Dvigubas rutulinis ratuko guolis su apsauga nuo dulkių ir purvo"]
["1.34.5.","Viršutinė tvirtinimo plokštelė su 4 tvirtinimo kiaurymėmis"]
["1.34.6.","Atlaiko apkrovą iki 100kg"]
["1.34.7.","Dvigubas atraminis guolis"]
["1.35.","Guminis ratukas pripučiamas, pasukamas d200[+-10]mm",10,"vnt.",null,{"$f":"IF(ISBLANK(E264),\"\", PRODUCT(C264,E264))","v":""}]
["1.35.1.","Metalinis ratlankis"]
["1.35.2.","Pneumatinės 2 sluoksnių padangos su kamera"]
["1.35.3.","Presuotas cinkuoto plieno kronšteinas"]
["1.35.4.","Dvigubas rutulinis ratuko guolis su apsauga nuo dulkių ir purvo"]
["1.35.5.","Viršutinė tvirtinimo plokštelė su 4 tvirtinimo kiaurymėmis"]
["1.35.6.","Atlaiko apkrovą iki 100kg"]
["1.35.7.","Dvigubas atraminis guolis"]
["1.36.","Guminis ratukas pripučiamas, pasukamas d250[+-20]mm",10,"vnt.",null,{"$f":"IF(ISBLANK(E272),\"\", PRODUCT(C272,E272))","v":""}]
["1.36.1.","Metalinis ratlankis"]
["1.36.2.","Pneumatinės 2 sluoksnių padangos su kamera"]
["1.36.3.","Presuotas cinkuoto plieno kronšteinas"]
["1.36.4.","Dvigubas rutulinis ratuko guolis su apsauga nuo dulkių ir purvo"]
["1.36.5.","Viršutinė tvirtinimo plokštelė su 4 tvirtinimo kiaurymėmis"]
["1.36.6.","Atlaiko apkrovą iki 100kg"]
["1.36.7.","Dvigubas atraminis guolis"]
["1.37.","Guminis ratukas pripučiamas, pasukamas , su stabdžiu d175[+-10]mm",5,"vnt.",null,{"$f":"IF(ISBLANK(E280),\"\", PRODUCT(C280,E280))","v":""}]
["1.37.1.","Metalinis ratlankis"]
["1.37.2.","Pneumatinės 2 sluoksnių padangos su kamera"]
["1.37.3.","Presuotas cinkuoto plieno kronšteinas"]
["1.37.4.","Dvigubas rutulinis ratuko guolis su apsauga nuo dulkių ir purvo"]
["1.37.5.","Viršutinė tvirtinimo plokštelė su 4 tvirtinimo kiaurymėmis"]
["1.37.6.","Atlaiko apkrovą iki 100kg"]
["1.37.7.","Dvigubas atraminis guolis"]
["1.37.8.","Pilnas stabdis - stabdo ratuką ir kronšteino pasukimą"]
["1.38.","Guminis ratukas pripučiamas, pasukamas , su stabdžiu d200[+-10]mm",5,"vnt.",null,{"$f":"IF(ISBLANK(E289),\"\", PRODUCT(C289,E289))","v":""}]
["1.38.1.","Metalinis ratlankis"]
["1.38.2.","Pneumatinės 2 sluoksnių padangos su kamera"]
["1.38.3.","Presuotas cinkuoto plieno kronšteinas"]
["1.38.4.","Dvigubas rutulinis ratuko guolis su apsauga nuo dulkių ir purvo"]
["1.38.5.","Viršutinė tvirtinimo plokštelė su 4 tvirtinimo kiaurymėmis"]
["1.38.6.","Atlaiko apkrovą iki 100kg"]
["1.38.7.","Dvigubas atraminis guolis"]
["1.38.8.","Pilnas stabdis - stabdo ratuką ir kronšteino pasukimą"]
["1.39.","Guminis ratukas pripučiamas, pasukamas , su stabdžiu d250[+-20]mm",5,"vnt.",null,{"$f":"IF(ISBLANK(E298),\"\", PRODUCT(C298,E298))","v":""}]
["1.39.1.","Metalinis ratlankis"]
["1.39.2.","Pneumatinės 2 sluoksnių padangos su kamera"]
["1.39.3.","Presuotas cinkuoto plieno kronšteinas"]
["1.39.4.","Dvigubas rutulinis ratuko guolis su apsauga nuo dulkių ir purvo"]
["1.39.5.","Viršutinė tvirtinimo plokštelė su 4 tvirtinimo kiaurymėmis"]
["1.39.6.","Atlaiko apkrovą iki 100kg"]
["1.39.7.","Dvigubas atraminis guolis"]
["1.39.8.","Pilnas stabdis - stabdo ratuką ir kronšteino pasukimą"]
["1.40.","Guminis ratukas pripučiamas, pakaitinis d175[+-10]mm",5,"vnt.",null,{"$f":"IF(ISBLANK(E307),\"\", PRODUCT(C307,E307))","v":""}]
["1.40.1.","Metalinis ratlankis"]
["1.40.2.","Pneumatinės 2 sluoksnių padangos su kamera"]
["1.40.3.","Dvigubas rutulinis ratuko guolis su apsauga nuo dulkių ir purvo"]
["1.40.4.","Tinka objektams 1.31 ; 1,34 ; 1.37"]
["1.41.","Guminis ratukas pripučiamas, pakaitinis d200[+-10]mm",5,"vnt.",null,{"$f":"IF(ISBLANK(E312),\"\", PRODUCT(C312,E312))","v":""}]
["1.41.1.","Metalinis ratlankis"]
["1.41.2.","Pneumatinės 2 sluoksnių padangos su kamera"]
["1.41.3.","Dvigubas rutulinis ratuko guolis su apsauga nuo dulkių ir purvo"]
["1.41.4.","Tinka objektams 1.31 ; 1,34 ; 1.37"]
["1.42.","Guminis ratukas pripučiamas, pakaitinis d250[+-10]mm",5,"vnt.",null,{"$f":"IF(ISBLANK(E317),\"\", PRODUCT(C317,E317))","v":""}]
["1.42.1.","Metalinis ratlankis"]
["1.42.2.","Pneumatinės 2 sluoksnių padangos su kamera"]
["1.42.3.","Dvigubas rutulinis ratuko guolis su apsauga nuo dulkių ir purvo"]
["1.42.4.","Tinka objektams 1.31 ; 1,34 ; 1.37"]
["1.43.","Kamera pripučiamam ratukui d175[+-10]mm",10,"vnt.",null,{"$f":"IF(ISBLANK(E322),\"\", PRODUCT(C322,E322))","v":""}]
["1.43.1.","Turi tikti objektui 1.31 ; 1.34 ; 1.37 ; 1.40"]
["1.44.","Kamera pripučiamam ratukui d200[+-10]mm",10,"vnt.",null,{"$f":"IF(ISBLANK(E324),\"\", PRODUCT(C324,E324))","v":""}]
["1.44.1.","Turi tikti objektui 1.32 ; 1.35 ; 1.38 ; 1.41"]
["1.45.","Kamera pripučiamam ratukui d250[+-10]mm",10,"vnt.",null,{"$f":"IF(ISBLANK(E326),\"\", PRODUCT(C326,E326))","v":""}]
["1.45.1.","Turi tikti objektui 1.33 ; 1.36 ; 1.39 ; 1.42"]
[null,null,null,null,"Suma be PVM",{"$f":"0","v":0},{"$f":"0","v":0}]
[null,null,null,null,"PVM suma"]
[null,null,null,null,"Suma su PVM",{"$f":"IF(ISBLANK(F329), \"\", SUM(F328:F329))","v":""}]
[]
["2.","Pripučiami ratukai karučiams, ratukų kameros"]
["2.1.","Guminis ratukas karučiui 220[+-10]/20[+-2] mm\n",5,"vnt.",null,{"$f":"IF(ISBLANK(E333),\"\", PRODUCT(C333,E333))","v":""}]
["2.1.1.","Presuoto plieno ratlankis\n"]
["2.1.2.","Pneumatinės dviejų sluoksnių padangos su kamera\n"]
["2.1.3.","Dvigubas rutulinis ratuko guolis\n"]
["2.1.4.","Atlaiko apkrovą iki 150kg\n"]
["2.2.","Guminis ratukas karučiui 260[+-10]/20[+-2] mm",5,"vnt.",null,{"$f":"IF(ISBLANK(E338),\"\", PRODUCT(C338,E338))","v":""}]
["2.2.1.","Presuoto plieno ratlankis"]
["2.2.2.","Pneumatinės dviejų sluoksnių padangos su kamera"]
["2.2.3.","Dvigubas rutulinis ratuko guolis"]
["2.2.4.","Atlaiko apkrovą iki 150kg"]
["2.3.","Guminis ratukas karučiui 400[+-20]/20[+-2] mm",5,"vnt.",null,{"$f":"IF(ISBLANK(E343),\"\", PRODUCT(C343,E343))","v":""}]
["2.3.1.","Presuoto plieno ratlankis"]
["2.3.2.","Pneumatinės dviejų sluoksnių padangos su kamera"]
["2.3.3.","Dvigubas rutulinis ratuko guolis"]
["2.3.4.","Atlaiko apkrovą iki 150kg"]
["2.4.","Guminis ratukas karučiui 400[+-20]/12[+-1] mm",5,"vnt.",null,{"$f":"IF(ISBLANK(E348),\"\", PRODUCT(C348,E348))","v":""}]
["2.4.1.","Presuoto plieno ratlankis"]
["2.4.2.","Pneumatinės dviejų sluoksnių padangos su kamera"]
["2.4.3.","Dvigubas rutulinis ratuko guolis"]
["2.4.4.","Atlaiko apkrovą iki 150kg"]
["2.5.","Kamera pripučiamam karučio  ratukui d220[+-10]mm",10,"vnt.",null,{"$f":"IF(ISBLANK(E353),\"\", PRODUCT(C353,E353))","v":""}]
["2.5.1.","Atitinkanti ratukų [objektas 2.1] techninius duomenis"]
["2.6.","Kamera pripučiamam karučio  ratukui d260[+-10]mm",10,"vnt.",null,{"$f":"IF(ISBLANK(E355),\"\", PRODUCT(C355,E355))","v":""}]
["2.6.1.","Atitinkanti ratukų [objektas 2.2] techninius duomenis"]
["2.7.","Kamera pripučiamam karučio  ratukui d400[+-20]mm",10,"vnt.",null,{"$f":"IF(ISBLANK(E357),\"\", PRODUCT(C357,E357))","v":""}]
["2.7.1.","Atitinkanti ratukų [objektas 2.3 ir 2.4] techninius duomenis"]
[null,null,null,null,"Suma be PVM",{"$f":"IF(OR(F333=\"\", F333=\"\", F333=\"\", F333=\"\", F333=\"\", F333=\"\", F338=\"\", F338=\"\", F338=\"\", F338=\"\", F338=\"\", F338=\"\", F343=\"\", F343=\"\", F343=\"\", F343=\"\", F343=\"\", F343=\"\", F348=\"\", F348=\"\", F348=\"\", F348=\"\", F348=\"\", F348=\"\", F353=\"\", F353=\"\", F353=\"\", F353=\"\", F353=\"\", F353=\"\", F355=\"\", F355=\"\", F355=\"\", F355=\"\", F355=\"\", F355=\"\", F357=\"\", F357=\"\", F357=\"\", F357=\"\", F357=\"\", F357=\"\"),\"\",SUM(F333:F358))","v":""},{"$f":"IF(OR(F333=\"\", F333=\"\", F333=\"\", F333=\"\", F333=\"\", F333=\"\", F338=\"\", F338=\"\", F338=\"\", F338=\"\", F338=\"\", F338=\"\", F343=\"\", F343=\"\", F343=\"\", F343=\"\", F343=\"\", F343=\"\", F348=\"\", F348=\"\", F348=\"\", F348=\"\", F348=\"\", F348=\"\", F353=\"\", F353=\"\", F353=\"\", F353=\"\", F353=\"\", F353=\"\", F355=\"\", F355=\"\", F355=\"\", F355=\"\", F355=\"\", F355=\"\", F357=\"\", F357=\"\", F357=\"\", F357=\"\", F357=\"\", F357=\"\", F357=\"\"),\"Neužpildytos visų objektų kainos\",\"\")","v":"Neužpildytos visų objektų kainos"}]
[null,null,null,null,"PVM suma"]
[null,null,null,null,"Suma su PVM",{"$f":"IF(ISBLANK(F360), \"\", SUM(F359:F360))","v":""}]
[]
["3.","Dujiniai amortizatoriai"]
["3.1.","BLOCK-O-LIFT tipo arba lygiavertis blokuojamo tipo dujinis amortizatorius d1 -10[+-1]mm d2- 28[+-2]mm, L1 150[+-10mm ,L2-25[+-5]mm 800N\n",2,"vnt.",null,{"$f":"IF(ISBLANK(E364),\"\", PRODUCT(C364,E364))","v":""}]
["3.1.1.","d1- stūmoklinio strypo diametras, d-2 cilindro korpuso išorinis diametras\n"]
["3.1.2.","L1- bendras ištraukto amortizatoriaus ilgis, L2- stūmoklinio strypo ilgis\n"]
["3.1.3.","blokuojamas abejomis judėjimo kryptimis\n"]
["3.1.4.","galimybė instaliuoti reikiama stūmoklinio strypo  judėjimo kryptimi\n"]
["3.1.5.","amortizatoriaus korpuso tvirtinimas su d8[+-1]mm kiauryme \n"]
["3.1.6.","stūmoklinio strypo vožtuvo atidarymo nuspaudėjo eiga 2,5[+-0,2]mm\n"]
["3.1.7.","amortizatoriaus korpusas ir stūmoklis metaliniai\n"]
["3.2.","BLOCK-O-LIFT tipo arba lygiavertis blokuojamo tipo dujinis amortizatorius d1 -10[+-1]mm d2- 28[+-2]mm, L1 190[+-10mm ,L2-40[+-5]mm 800N\n",2,"vnt.",null,{"$f":"IF(ISBLANK(E372),\"\", PRODUCT(C372,E372))","v":""}]
["3.2.1.","d1- stūmoklinio strypo diametras, d-2 cilindro korpuso išorinis diametras\n"]
["3.2.2.","L1- bendras ištraukto amortizatoriaus ilgis, L2- stūmoklinio strypo ilgis\n"]
["3.2.3.","blokuojamas abejomis judėjimo kryptimis\n"]
["3.2.4.","galimybė instaliuoti reikiama stūmoklinio strypo  judėjimo kryptimi\n"]
["3.2.5.","amortizatoriaus korpuso tvirtinimas su d8[+-1]mm kiauryme \n"]
["3.2.6.","stūmoklinio strypo vožtuvo atidarymo nuspaudėjo eiga 2,5[+-0,2]mm\n"]
["3.2.7.","amortizatoriaus korpusas ir stūmoklis metaliniai\n"]
["3.3.","BLOCK-O-LIFT tipo arba lygiavertis blokuojamo tipo dujinis amortizatorius d1 -10[+-1]mm d2- 28[+-2]mm, L1 230[+-10mm ,L2-60[+-5]mm 800N\n",2,"vnt.",null,{"$f":"IF(ISBLANK(E380),\"\", PRODUCT(C380,E380))","v":""}]
["3.3.1.","d1- stūmoklinio strypo diametras, d-2 cilindro korpuso išorinis diametras\n"]
["3.3.2.","L1- bendras ištraukto amortizatoriaus ilgis, L2- stūmoklinio strypo ilgis\n"]
["3.3.3.","blokuojamas abejomis judėjimo kryptimis\n"]
["3.3.4.","galimybė instaliuoti reikiama stūmoklinio strypo  judėjimo kryptimi\n"]
["3.3.5.","amortizatoriaus korpuso tvirtinimas su d8[+-1]mm kiauryme \n"]
["3.3.6.","stūmoklinio strypo vožtuvo atidarymo nuspaudėjo eiga 2,5[+-0,2]mm\n"]
["3.3.7.","amortizatoriaus korpusas ir stūmoklis metaliniai\n"]
["3.4.","BLOCK-O-LIFT tipo arba lygiavertis blokuojamo tipo dujinis amortizatorius d1 -10[+-1]mm d2- 28[+-2]mm, L1 230[+-10mm ,L2-60[+-5]mm 800N\n",2,"vnt.",null,{"$f":"IF(ISBLANK(E388),\"\", PRODUCT(C388,E388))","v":""}]
["3.4.1.","d1- stūmoklinio strypo diametras, d-2 cilindro korpuso išorinis diametras\n"]
["3.4.2.","L1- bendras ištraukto amortizatoriaus ilgis, L2- stūmoklinio strypo ilgis\n"]
["3.4.3.","blokuojamas abejomis judėjimo kryptimis\n"]
["3.4.4.","galimybė instaliuoti reikiama stūmoklinio strypo  judėjimo kryptimi\n"]
["3.4.5.","amortizatoriaus korpuso tvirtinimas su d8[+-1]mm kiauryme \n"]
["3.4.6.","stūmoklinio strypo vožtuvo atidarymo nuspaudėjo eiga 2,5[+-0,2]mm\n"]
["3.4.7.","amortizatoriaus korpusas ir stūmoklis metaliniai\n"]
["3.5.","BLOCK-O-LIFT tipo arba lygiavertis blokuojamo tipo dujinis amortizatorius d1 -10[+-1]mm d2- 28[+-2]mm, L1 270[+-10mm ,L2-80[+-5]mm 800N",2,"vnt.",null,{"$f":"IF(ISBLANK(E396),\"\", PRODUCT(C396,E396))","v":""}]
["3.5.1.","d1- stūmoklinio strypo diametras, d-2 cilindro korpuso išorinis diametras\n"]
["3.5.2.","L1- bendras ištraukto amortizatoriaus ilgis, L2- stūmoklinio strypo ilgis\n"]
["3.5.3.","blokuojamas abejomis judėjimo kryptimis\n"]
["3.5.4.","galimybė instaliuoti reikiama stūmoklinio strypo  judėjimo kryptimi\n"]
["3.5.5.","amortizatoriaus korpuso tvirtinimas su d8[+-1]mm kiauryme \n"]
["3.5.6.","stūmoklinio strypo vožtuvo atidarymo nuspaudėjo eiga 2,5[+-0,2]mm\n"]
["3.5.7.","amortizatoriaus korpusas ir stūmoklis metaliniai\n"]
["3.6.","BLOCK-O-LIFT tipo arba lygiavertis blokuojamo tipo dujinis amortizatorius d1 -10[+-1]mm d2- 28[+-2]mm, L1 310[+-10mm ,L2-100[+-5]mm 800N\n",2,"vnt.",null,{"$f":"IF(ISBLANK(E404),\"\", PRODUCT(C404,E404))","v":""}]
["3.6.1.","d1- stūmoklinio strypo diametras, d-2 cilindro korpuso išorinis diametras\n"]
["3.6.2.","L1- bendras ištraukto amortizatoriaus ilgis, L2- stūmoklinio strypo ilgis\n"]
["3.6.3.","blokuojamas abejomis judėjimo kryptimis\n"]
["3.6.4.","galimybė instaliuoti reikiama stūmoklinio strypo  judėjimo kryptimi\n"]
["3.6.5.","amortizatoriaus korpuso tvirtinimas su d8[+-1]mm kiauryme \n"]
["3.6.6.","stūmoklinio strypo vožtuvo atidarymo nuspaudėjo eiga 2,5[+-0,2]mm\n"]
["3.6.7.","amortizatoriaus korpusas ir stūmoklis metaliniai\n"]
["3.7.","BLOCK-O-LIFT tipo arba lygiavertis blokuojamo tipo dujinis amortizatorius d1 -10[+-1]mm d2- 28[+-2]mm, L1 350[+-10mm ,L2-120[+-5]mm 800N\n",2,"vnt.",null,{"$f":"IF(ISBLANK(E412),\"\", PRODUCT(C412,E412))","v":""}]
["3.7.1.","d1- stūmoklinio strypo diametras, d-2 cilindro korpuso išorinis diametras\n"]
["3.7.2.","L1- bendras ištraukto amortizatoriaus ilgis, L2- stūmoklinio strypo ilgis\n"]
["3.7.3.","blokuojamas abejomis judėjimo kryptimis\n"]
["3.7.4.","galimybė instaliuoti reikiama stūmoklinio strypo  judėjimo kryptimi\n"]
["3.7.5.","amortizatoriaus korpuso tvirtinimas su d8[+-1]mm kiauryme \n"]
["3.7.6.","stūmoklinio strypo vožtuvo atidarymo nuspaudėjo eiga 2,5[+-0,2]mm\n"]
["3.7.7.","amortizatoriaus korpusas ir stūmoklis metaliniai\n"]
["3.8.","BLOCK-O-LIFT tipo arba lygiavertis blokuojamo tipo dujinis amortizatorius d1 -10[+-1]mm d2- 28[+-2]mm, L1 430[+-10mm ,L2-160[+-5]mm 800N\n",2,"vnt.",null,{"$f":"IF(ISBLANK(E420),\"\", PRODUCT(C420,E420))","v":""}]
["3.8.1.","d1- stūmoklinio strypo diametras, d-2 cilindro korpuso išorinis diametras\n"]
["3.8.2.","L1- bendras ištraukto amortizatoriaus ilgis, L2- stūmoklinio strypo ilgis\n"]
["3.8.3.","blokuojamas abejomis judėjimo kryptimis\n"]
["3.8.4.","galimybė instaliuoti reikiama stūmoklinio strypo  judėjimo kryptimi\n"]
["3.8.5.","amortizatoriaus korpuso tvirtinimas su d8[+-1]mm kiauryme \n"]
["3.8.6.","stūmoklinio strypo vožtuvo atidarymo nuspaudėjo eiga 2,5[+-0,2]mm\n"]
["3.8.7.","amortizatoriaus korpusas ir stūmoklis metaliniai\n"]
["3.9.","BLOCK-O-LIFT tipo arba lygiavertis blokuojamo tipo dujinis amortizatorius d1 -10[+-1]mm d2- 28[+-2]mm, L1 510[+-10mm ,L2-200[+-5]mm 800N",10,"vnt.",null,{"$f":"IF(ISBLANK(E428),\"\", PRODUCT(C428,E428))","v":""}]
["3.9.1.","d1- stūmoklinio strypo diametras, d-2 cilindro korpuso išorinis diametras\n"]
["3.9.2.","L1- bendras ištraukto amortizatoriaus ilgis, L2- stūmoklinio strypo ilgis\n"]
["3.9.3.","blokuojamas abejomis judėjimo kryptimis\n"]
["3.9.4.","galimybė instaliuoti reikiama stūmoklinio strypo  judėjimo kryptimi\n"]
["3.9.5.","amortizatoriaus korpuso tvirtinimas su d8[+-1]mm kiauryme \n"]
["3.9.6.","stūmoklinio strypo vožtuvo atidarymo nuspaudėjo eiga 2,5[+-0,2]mm\n"]
["3.9.7.","amortizatoriaus korpusas ir stūmoklis metaliniai\n"]
["3.10.","BLOCK-O-LIFT tipo arba lygiavertis blokuojamo tipo dujinis amortizatorius d1 -10[+-1]mm d2- 28[+-2]mm, L1 610[+-10mm ,L2-250[+-5]mm 250N\n",10,"vnt.",null,{"$f":"IF(ISBLANK(E436),\"\", PRODUCT(C436,E436))","v":""}]
["3.10.1.","d1- stūmoklinio strypo diametras, d-2 cilindro korpuso išorinis diametras\n"]
["3.10.2.","L1- bendras ištraukto amortizatoriaus ilgis, L2- stūmoklinio strypo ilgis\n"]
["3.10.3.","blokuojamas abejomis judėjimo kryptimis\n"]
["3.10.4.","galimybė instaliuoti reikiama stūmoklinio strypo  judėjimo kryptimi\n"]
["3.10.5.","amortizatoriaus korpuso tvirtinimas su d8[+-1]mm kiauryme \n"]
["3.10.6.","stūmoklinio strypo vožtuvo atidarymo nuspaudėjo eiga 2,5[+-0,2]mm\n"]
["3.10.7.","amortizatoriaus korpusas ir stūmoklis metaliniai\n"]
["3.11.","BLOCK-O-LIFT tipo arba lygiavertis blokuojamo tipo dujinis amortizatorius d1 -10[+-1]mm d2- 28[+-2]mm,L1 610[+-10]mm ,L2-250[+-5]mm 800N\n",10,"vnt.",null,{"$f":"IF(ISBLANK(E444),\"\", PRODUCT(C444,E444))","v":""}]
["3.11.1.","d1- stūmoklinio strypo diametras, d-2 cilindro korpuso išorinis diametras\n"]
["3.11.2.","L1- bendras ištraukto amortizatoriaus ilgis, L2- stūmoklinio strypo ilgis\n"]
["3.11.3.","amortizatoriaus korpuso tvirtinimas su d8[+-1]mm kiauryme \n"]
["3.11.4.","amortizatoriaus korpusas ir stūmoklis metaliniai\n"]
["3.11.5.","galimybė instaliuoti reikiama stūmoklinio strypo  judėjimo kryptimi\n"]
["3.11.6.","blokuojamas abejomis judėjimo kryptimis"]
["3.11.7.","stūmoklinio strypo vožtuvo atidarymo nuspaudėjo eiga 2,5[+-0,2]mm"]
["3.12.","LIFT-O-MAT tipo arba lygiavertis dujinis amortizatorius d1-10[+-1]mm d2-22[+-2]mm, L1-285[+-10]mm, L2-96[+-10]mm, 900N\n",2,"vnt.",null,{"$f":"IF(ISBLANK(E452),\"\", PRODUCT(C452,E452))","v":""}]
["3.12.1.","d1- stūmoklinio strypo diametras, d-2 cilindro korpuso išorinis diametras\n"]
["3.12.2.","L1- bendras ištraukto amortizatoriaus ilgis, L2- stūmoklinio strypo ilgis\n"]
["3.12.3.","amortizatoriaus korpuso tvirtinimas su d8[+-1]mm kiauryme \n"]
["3.12.4.","amortizatoriaus korpusas ir stūmoklis metaliniai\n"]
["3.12.5.","stūmoklinio strypo antgalis srieginis nusukamas\n"]
["3.13.","LIFT-O-MAT tipo arba lygiavertis dujinis amortizatorius d1-10[+-1]mm d2-22[+-2]mm, L1-385[+-10]mm,L2-146[+-10]mm,900N\n",2,"vnt.",null,{"$f":"IF(ISBLANK(E458),\"\", PRODUCT(C458,E458))","v":""}]
["3.13.1.","d1- stūmoklinio strypo diametras, d-2 cilindro korpuso išorinis diametras\n"]
["3.13.2.","L1- bendras ištraukto amortizatoriaus ilgis, L2- stūmoklinio strypo ilgis\n"]
["3.13.3.","amortizatoriaus korpuso tvirtinimas su d8[+-1]mm kiauryme \n"]
["3.13.4.","amortizatoriaus korpusas ir stūmoklis metaliniai\n"]
["3.13.5.","stūmoklinio strypo antgalis srieginis nusukamas\n"]
["3.14.","LIFT-O-MAT tipo arba lygiavertis dujinis amortizatorius d1-10[+-1]mm d2-22[+-2]mm,L1-485[+-10]mm, L2-196[+-10]mm,900N\n",2,"vnt.",null,{"$f":"IF(ISBLANK(E464),\"\", PRODUCT(C464,E464))","v":""}]
["3.14.1.","d1- stūmoklinio strypo diametras, d-2 cilindro korpuso išorinis diametras\n"]
["3.14.2.","L1- bendras ištraukto amortizatoriaus ilgis, L2- stūmoklinio strypo ilgis\n"]
["3.14.3.","amortizatoriaus korpuso tvirtinimas su d8[+-1]mm kiauryme \n"]
["3.14.4.","amortizatoriaus korpusas ir stūmoklis metaliniai\n"]
["3.14.5.","stūmoklinio strypo antgalis srieginis nusukamas\n"]
["3.15.","LIFT-O-MAT tipo arba lygiavertis dujinis amortizatorius d1-10[+-1]mm d2-22[+-2]mm,L1-585[+-10]mm, L2-246[+-10]mm,900N\n",2,"vnt.",null,{"$f":"IF(ISBLANK(E470),\"\", PRODUCT(C470,E470))","v":""}]
["3.15.1.","d1- stūmoklinio strypo diametras, d-2 cilindro korpuso išorinis diametras\n"]
["3.15.2.","L1- bendras ištraukto amortizatoriaus ilgis, L2- stūmoklinio strypo ilgis\n"]
["3.15.3.","amortizatoriaus korpuso tvirtinimas su d8[+-1]mm kiauryme \n"]
["3.15.4.","amortizatoriaus korpusas ir stūmoklis metaliniai\n"]
["3.15.5.","stūmoklinio strypo antgalis srieginis nusukamas\n"]
["3.16.","LIFT-O-MAT tipo arba lygiavertis dujinis amortizatorius d1-10[+-1]mm d2-22[+-2]mm,L1-685[+-10]mm, L2-296[+-10]mm,800N\n",2,"vnt.",null,{"$f":"IF(ISBLANK(E476),\"\", PRODUCT(C476,E476))","v":""}]
["3.16.1.","d1- stūmoklinio strypo diametras, d-2 cilindro korpuso išorinis diametras\n"]
["3.16.2.","L1- bendras ištraukto amortizatoriaus ilgis, L2- stūmoklinio strypo ilgis\n"]
["3.16.3.","amortizatoriaus korpuso tvirtinimas su d8[+-1]mm kiauryme \n"]
["3.16.4.","amortizatoriaus korpusas ir stūmoklis metaliniai\n"]
["3.16.5.","stūmoklinio strypo antgalis srieginis nusukamas\n"]
["3.17.","LIFT-O-MAT tipo arba lygiavertis dujinis amortizatorius d1-10[+-1]mm d2-22[+-2]mm,L1-785[+-10]mm, L2-346[+-10]mm,800N\n",2,"vnt.",null,{"$f":"IF(ISBLANK(E482),\"\", PRODUCT(C482,E482))","v":""}]
["3.17.1.","d1- stūmoklinio strypo diametras, d-2 cilindro korpuso išorinis diametras\n"]
["3.17.2.","L1- bendras ištraukto amortizatoriaus ilgis, L2- stūmoklinio strypo ilgis\n"]
["3.17.3.","amortizatoriaus korpuso tvirtinimas su d8[+-1]mm kiauryme \n"]
["3.17.4.","amortizatoriaus korpusas ir stūmoklis metaliniai\n"]
["3.17.5.","stūmoklinio strypo antgalis srieginis nusukamas\n"]
["3.18.","LIFT-O-MAT tipo arba lygiavertis dujinis amortizatorius d1-10[+-1]mm d2-22[+-2]mm,L1-885[+-10]mm, L2-396[+-10]mm,800N\n",2,"vnt.",null,{"$f":"IF(ISBLANK(E488),\"\", PRODUCT(C488,E488))","v":""}]
["3.18.1.","d1- stūmoklinio strypo diametras, d-2 cilindro korpuso išorinis diametras\n"]
["3.18.2.","L1- bendras ištraukto amortizatoriaus ilgis, L2- stūmoklinio strypo ilgis\n"]
["3.18.3.","amortizatoriaus korpuso tvirtinimas su d8[+-1]mm kiauryme \n"]
["3.18.4.","amortizatoriaus korpusas ir stūmoklis metaliniai\n"]
["3.18.5.","stūmoklinio strypo antgalis srieginis nusukamas\n"]
[null,null,null,null,"Suma be PVM",{"$f":"IF(OR(F364=\"\", F364=\"\", F364=\"\", F364=\"\", F364=\"\", F364=\"\", F372=\"\", F372=\"\", F372=\"\", F372=\"\", F372=\"\", F372=\"\", F380=\"\", F380=\"\", F380=\"\", F380=\"\", F380=\"\", F380=\"\", F388=\"\", F388=\"\", F388=\"\", F388=\"\", F388=\"\", F388=\"\", F396=\"\", F396=\"\", F396=\"\", F396=\"\", F396=\"\", F396=\"\", F404=\"\", F404=\"\", F404=\"\", F404=\"\", F404=\"\", F404=\"\", F412=\"\", F412=\"\", F412=\"\", F412=\"\", F412=\"\", F412=\"\", F420=\"\", F420=\"\", F420=\"\", F420=\"\", F420=\"\", F420=\"\", F428=\"\", F428=\"\", F428=\"\", F428=\"\", F428=\"\", F428=\"\", F436=\"\", F436=\"\", F436=\"\", F436=\"\", F436=\"\", F436=\"\", F444=\"\", F444=\"\", F444=\"\", F444=\"\", F444=\"\", F444=\"\", F452=\"\", F452=\"\", F452=\"\", F452=\"\", F452=\"\", F452=\"\", F458=\"\", F458=\"\", F458=\"\", F458=\"\", F458=\"\", F458=\"\", F464=\"\", F464=\"\", F464=\"\", F464=\"\", F464=\"\", F464=\"\", F470=\"\", F470=\"\", F470=\"\", F470=\"\", F470=\"\", F470=\"\", F476=\"\", F476=\"\", F476=\"\", F476=\"\", F476=\"\", F476=\"\", F482=\"\", F482=\"\", F482=\"\", F482=\"\", F482=\"\", F482=\"\", F488=\"\", F488=\"\", F488=\"\", F488=\"\", F488=\"\", F488=\"\"),\"\",SUM(F364:F493))","v":""},{"$f":"IF(OR(F364=\"\", F364=\"\", F364=\"\", F364=\"\", F364=\"\", F364=\"\", F372=\"\", F372=\"\", F372=\"\", F372=\"\", F372=\"\", F372=\"\", F380=\"\", F380=\"\", F380=\"\", F380=\"\", F380=\"\", F380=\"\", F388=\"\", F388=\"\", F388=\"\", F388=\"\", F388=\"\", F388=\"\", F396=\"\", F396=\"\", F396=\"\", F396=\"\", F396=\"\", F396=\"\", F404=\"\", F404=\"\", F404=\"\", F404=\"\", F404=\"\", F404=\"\", F412=\"\", F412=\"\", F412=\"\", F412=\"\", F412=\"\", F412=\"\", F420=\"\", F420=\"\", F420=\"\", F420=\"\", F420=\"\", F420=\"\", F428=\"\", F428=\"\", F428=\"\", F428=\"\", F428=\"\", F428=\"\", F436=\"\", F436=\"\", F436=\"\", F436=\"\", F436=\"\", F436=\"\", F444=\"\", F444=\"\", F444=\"\", F444=\"\", F444=\"\", F444=\"\", F452=\"\", F452=\"\", F452=\"\", F452=\"\", F452=\"\", F452=\"\", F458=\"\", F458=\"\", F458=\"\", F458=\"\", F458=\"\", F458=\"\", F464=\"\", F464=\"\", F464=\"\", F464=\"\", F464=\"\", F464=\"\", F470=\"\", F470=\"\", F470=\"\", F470=\"\", F470=\"\", F470=\"\", F476=\"\", F476=\"\", F476=\"\", F476=\"\", F476=\"\", F476=\"\", F482=\"\", F482=\"\", F482=\"\", F482=\"\", F482=\"\", F482=\"\", F488=\"\", F488=\"\", F488=\"\", F488=\"\", F488=\"\", F488=\"\", F488=\"\"),\"Neužpildytos visų objektų kainos\",\"\")","v":"Neužpildytos visų objektų kainos"}]
[null,null,null,null,"PVM suma"]
[null,null,null,null,"Suma su PVM",{"$f":"IF(ISBLANK(F495), \"\", SUM(F494:F495))","v":""}]
[]
["4.","Hidrauliniai pakėlimo cilindrai \n"]
["4.1.","Pagrindinis hidraulinio pakėlimo cilindras pervežimo lovai W-02 , arba lygiavertis\n",4,"vnt.",250,{"$f":"IF(ISBLANK(E499),\"\", PRODUCT(C499,E499))","v":1000},"Hidraulinis pakėlimo cilindras lovai W-02, Gamintojas: Metalowiec"]
["4.1.1.","Pagrindinis hidraulinio pakėlimo cilindras pervežimo lovai W-02, arba lygiavertis\n",null,null,null,null,null,"Pagrindinis hidraulinio pakėlimo cilindras pervežimo lovai W-02"]
["4.1.2.","Reikalingas pakeisti sugedusį pakėlimo cilindrą jau turimoje pervežimo lovoje.\n",null,null,null,null,null,"Pakeisti pakėlimo cilindrą"]
[null,null,null,null,"Suma be PVM",{"$f":"IF(OR(F499=\"\", F499=\"\", F499=\"\", F499=\"\", F499=\"\", F499=\"\"),\"\",SUM(F499:F501))","v":1000},{"$f":"IF(OR(F499=\"\", F499=\"\", F499=\"\", F499=\"\", F499=\"\", F499=\"\", F499=\"\"),\"Neužpildytos visų objektų kainos\",\"\")","v":""}]
[null,null,null,null,"PVM suma",210]
[null,null,null,null,"Suma su PVM",{"$f":"IF(ISBLANK(F503), \"\", SUM(F502:F503))","v":1210}]
[]
["5.","Ratukai kėdėms"]
["5.1.","Ratukas biuro kėdėms plastikinis gumuotas d50[+-10] mm",100,"vnt.",null,{"$f":"IF(ISBLANK(E507),\"\", PRODUCT(C507,E507))","v":""}]
["5.1.1.","Tvirtinimas srieginis 11[+-1]x22[+-3]mm"]
["5.1.2.","Max apkrova iki 40[+-5]kg"]
["5.2.","Ratukas biuro kėdėms plastikinis gumuotas d40[+-10] mm",80,"vnt.",null,{"$f":"IF(ISBLANK(E510),\"\", PRODUCT(C510,E510))","v":""}]
["5.2.1.","Tvirtinimas - kvadratinė plokštelė su 4 tvirtinimo kiaurymėmis"]
["5.2.2.","Max apkrova iki 40[+-5]kg"]
[null,null,null,null,"Suma be PVM",{"$f":"IF(OR(F507=\"\", F507=\"\", F507=\"\", F507=\"\", F507=\"\", F507=\"\", F510=\"\", F510=\"\", F510=\"\", F510=\"\", F510=\"\", F510=\"\"),\"\",SUM(F507:F512))","v":""},{"$f":"IF(OR(F507=\"\", F507=\"\", F507=\"\", F507=\"\", F507=\"\", F507=\"\", F510=\"\", F510=\"\", F510=\"\", F510=\"\", F510=\"\", F510=\"\", F510=\"\"),\"Neužpildytos visų objektų kainos\",\"\")","v":"Neužpildytos visų objektų kainos"}]
[null,null,null,null,"PVM suma"]
[null,null,null,null,"Suma su PVM",{"$f":"IF(ISBLANK(F514), \"\", SUM(F513:F514))","v":""}]

{"sheet":"Subtiekėjai","index":1,"n_rows":100,"n_cols":9,"rows_kept":100,"cut":false,"hidden":false,"merged":[[32,0,32,3],[32,4,32,9],[19,0,19,10],[16,1,16,3],[15,1,15,3],[22,0,22,9],[23,0,23,9],[25,0,25,9],[29,0,29,3],[29,4,29,9],[17,1,17,3],[17,4,17,5],[17,6,17,7],[17,8,17,9],[21,0,21,3],[21,4,21,9],[14,1,14,3],[15,4,15,5],[16,4,16,5],[8,0,8,1],[8,2,8,4],[8,5,8,7],[12,6,12,7],[13,6,13,7],[14,6,14,7],[15,6,15,7],[16,6,16,7],[13,1,13,3],[12,1,12,3],[12,4,12,5],[13,4,13,5],[14,4,14,5],[8,8,8,9],[10,0,10,9],[6,0,6,1],[6,2,6,4],[6,5,6,7],[6,8,6,9],[7,0,7,1],[7,2,7,4],[7,5,7,7],[7,8,7,9],[1,0,1,10],[5,0,5,1],[5,2,5,4],[5,5,5,7],[5,8,5,9],[4,0,4,1],[4,2,4,4],[4,5,4,7],[4,8,4,9],[3,0,3,1],[3,2,3,4],[3,5,3,7],[3,8,3,9],[12,8,12,9],[13,8,13,9],[14,8,14,9],[15,8,15,9],[16,8,16,9]]}
[]
["Subtiekėjai ir jiems perduodama vykdyti pirkimo sutarties dalis:"]
[]
["Eil. Nr",null,"Subtiekėjo pavadinimas",null,null,"Pirkimo objekto dalies, perduodamos vykdyti subtiekėjui, aprašymas",null,null,"Procentas perduodamos vykdyti pirkimo objekto dalies nuo pasiūlymo kainos su PVM (pildoma, jei ūkio subjektas vykdys sutartį)"]
[]
[]
[]
[]
[]
[]
["Kartu su pasiūlymu pateikiami šie dokumentai:"]
[]
["Eil.Nr.","Dokumentas",null,null,"Ar dokumnetas konfidencialus? (Taip/Ne)",null,"Prisegtos bylos (failo) pavadinimas ",null,"Paaiškinimas, kokia konkreti informacija dokumente yra konfidenciali"]
[]
[]
[]
[]
[]
[]
["Pasirašydamas šį pasiūlymą, tvirtintu, kad:\n1) pasiūlymo dokumentuose pateikti duomenys yra tikri;\n2) siūlomas Pirkimo objektas visiškai atitinka Pirkimo dokumentuose nustatytus reikalavimus;\n3) sutinku su visomis Pirkimo dokumentuose nustatytomis sąlygomis;\n4) pasiūlymas galioja iki termino, nustatyto Pirkimo dokumentuose; \n5) mes esame / nesame (nereikalingą išbraukti) laikomi asocijuotais (susijusiais) su Perkančiuoju subjektu pagal Lietuvos Respublikoje galiojančių teisės aktų (Lietuvos Respublikos pelno mokesčio, Lietuvos Respublikos pridėtinės vertės mokesčio ir Lietuvos Respublikos gyventojų pajamų mokesčio įstatymų) nuostatas; \n6) savo pasiūlymo galiojimą užtikrinsiu pagal Specialiųjų sąlygų 6.1 punktą (jei taikoma)."]
[]
["Pasiūlymo galiojimo užtikrinimui pateikiame :"]
[]
["(Nurodyti užtikrinimo būdą, dydį, dokumentus)"]
[]
["\nPasiūlymas galioja iki termino, nustatyto pirkimo dokumentuose.\n\nPasiūlymo neatskiriama dalis yra (rašoma, jeigu buvo reikalauta prie pasiūlymo pridėti atitinkamą dokumentą)"]
[]
[]
[]
["Tiekėjo arba jo įgalioto asmens pareigų pavadinimas"]
[]
[]
["Pasirašančio asmens vardas ir pavardė"]
[]
[]
[]
[]
[]
[]
[]
[]
[]
[]
[]
[]
[]
[]
[]
[]
[]
[]
[]
[]
[]
[]
[]
[]
[]
[]
[]
[]
[]
[]
[]
[]
[]
[]
[]
[]
[]
[]
[]
[]
[]
[]
[]
[]
[]
[]
[]
[]
[]
[]
[]
[]
[]
[]
[]
[]
[]
[]
[]
[]
[]
[]
[]
[]
[]
[]
["3419 2019-06-10 10:48:28"]